[Event "Titled Tuesday Blitz May 30 Late 2023"]
[White "Gheorghiu, Calin"]
[Black "Bryakin, Mikhail"]
[WhiteFideId "1200305"]
[BlackFideId "4165314"]
[WhiteElo "2223"]
[BlackElo "2467"]
[Result "0-1"]
[Round "04"]
[TimeControl "180+2"]
[Date "2023.05.31"]
[WhiteClock "0:00:03"]
[BlackClock "0:02:15"]

1. e4 {[%clk 0:02:35]}  g6 {[%clk 0:02:56]} 2. d4 {[%clk 0:02:34]}  Bg7 {[%clk 0:02:57]} 3. c4 {[%clk 0:02:22]}  c5 {[%clk 0:02:49]} 4. Ne2 {[%clk 0:02:20]}  cxd4 {[%clk 0:02:47]} 5. Nxd4 {[%clk 0:02:21]}  Nc6 {[%clk 0:02:48]} 6. Be3 {[%clk 0:02:18]}  Nf6 {[%clk 0:02:47]} 7. Nc3 {[%clk 0:02:18]}  O-O {[%clk 0:02:48]} 8. Be2 {[%clk 0:02:16]}  d6 {[%clk 0:02:48]} 9. O-O {[%clk 0:02:15]}  Bd7 {[%clk 0:02:48]} 10. Rc1 {[%clk 0:02:14]}  Nxd4 {[%clk 0:02:48]} 11. Bxd4 {[%clk 0:02:14]}  Bc6 {[%clk 0:02:49]} 12. f3 {[%clk 0:02:07]}  a5 {[%clk 0:02:49]} 13. b3 {[%clk 0:01:59]}  Nd7 {[%clk 0:02:50]} 14. Bxg7 {[%clk 0:01:56]}  Kxg7 {[%clk 0:02:51]} 15. Nd5 {[%clk 0:01:55]}  Bxd5 {[%clk 0:02:47]} 16. exd5 {[%clk 0:01:56]}  Qb6+ {[%clk 0:02:44]} 17. Kh1 {[%clk 0:01:56]}  a4 {[%clk 0:02:44]} 18. f4 {[%clk 0:01:47]}  axb3 {[%clk 0:02:41]} 19. axb3 {[%clk 0:01:47]}  Ra2 {[%clk 0:02:39]} 20. Rf3 {[%clk 0:01:41]}  Rfa8 {[%clk 0:02:36]} 21. Qd3 {[%clk 0:01:24]}  Nf6 {[%clk 0:02:33]} 22. f5 {[%clk 0:01:12]}  Rb2 {[%clk 0:02:30]} 23. fxg6 {[%clk 0:01:10]}  hxg6 {[%clk 0:02:31]} 24. Rcf1 {[%clk 0:01:04]}  Raa2 {[%clk 0:02:30]} 25. R1f2 {[%clk 0:00:22]}  Ra3 {[%clk 0:02:21]} 26. Rxf6 {[%clk 0:00:03]}  exf6 {[%clk 0:02:19]} 27. Qf3 {[%clk 0:00:04]}  Qd4 {[%clk 0:02:16]} 28. h3 {[%clk 0:00:03]}  Raxb3 {[%clk 0:02:15]} 0-1


[Site "https://www.chess.com"]

[Event "Titled Tuesday Blitz May 30 Late 2023"]
[White "Chylewski, Patryk"]
[Black "Maksimovic, Bojan"]
[WhiteFideId "1186191"]
[BlackFideId "14408120"]
[WhiteElo "2163"]
[BlackElo "2468"]
[Result "0-1"]
[Round "04"]
[TimeControl "180+2"]
[Date "2023.05.31"]
[WhiteClock "0:00:03"]
[BlackClock "0:01:29"]

1. e4 {[%clk 0:03:00]}  g6 {[%clk 0:02:53]} 2. d4 {[%clk 0:03:00]}  Nf6 {[%clk 0:02:54]} 3. Nc3 {[%clk 0:03:01]}  d5 {[%clk 0:02:54]} 4. f3 {[%clk 0:02:37]}  dxe4 {[%clk 0:02:50]} 5. fxe4 {[%clk 0:02:36]}  e5 {[%clk 0:02:38]} 6. d5 {[%clk 0:02:32]}  Bc5 {[%clk 0:02:30]} 7. Bg5 {[%clk 0:02:01]}  h6 {[%clk 0:02:29]} 8. Bh4 {[%clk 0:01:50]}  g5 {[%clk 0:02:27]} 9. Bg3 {[%clk 0:01:50]}  Bg4 {[%clk 0:02:25]} 10. Be2 {[%clk 0:01:40]}  Bxe2 {[%clk 0:02:24]} 11. Qxe2 {[%clk 0:01:41]}  Nbd7 {[%clk 0:02:24]} 12. Nf3 {[%clk 0:01:41]}  Qe7 {[%clk 0:02:25]} 13. O-O-O {[%clk 0:01:40]}  O-O-O {[%clk 0:02:25]} 14. Kb1 {[%clk 0:01:37]}  Kb8 {[%clk 0:02:25]} 15. Nd2 {[%clk 0:01:24]}  h5 {[%clk 0:02:22]} 16. Rhf1 {[%clk 0:01:22]}  h4 {[%clk 0:02:20]} 17. Bf2 {[%clk 0:01:21]}  Bxf2 {[%clk 0:02:20]} 18. Rxf2 {[%clk 0:01:22]}  Nh5 {[%clk 0:02:19]} 19. Rdf1 {[%clk 0:01:11]}  f6 {[%clk 0:02:17]} 20. Nc4 {[%clk 0:01:03]}  Nb6 {[%clk 0:02:16]} 21. Ne3 {[%clk 0:01:01]}  Nf4 {[%clk 0:02:15]} 22. Qg4 {[%clk 0:00:54]}  Qc5 {[%clk 0:02:06]} 23. Qf3 {[%clk 0:00:50]}  Nc4 {[%clk 0:01:40]} 24. Nxc4 {[%clk 0:00:46]}  Qxc4 {[%clk 0:01:41]} 25. g3 {[%clk 0:00:45]}  Nh3 {[%clk 0:01:41]} 26. Re2 {[%clk 0:00:24]}  Rd6 {[%clk 0:01:41]} 27. Qg2 {[%clk 0:00:16]}  g4 {[%clk 0:01:36]} 28. gxh4 {[%clk 0:00:16]}  Nf4 {[%clk 0:01:33]} 29. Rxf4 {[%clk 0:00:13]}  exf4 {[%clk 0:01:34]} 30. Qxg4 {[%clk 0:00:13]}  b5 {[%clk 0:01:35]} 31. Re1 {[%clk 0:00:10]}  b4 {[%clk 0:01:35]} 32. Nd1 {[%clk 0:00:09]}  Re8 {[%clk 0:01:32]} 33. Qxf4 {[%clk 0:00:09]}  Rxd5 {[%clk 0:01:33]} 34. Ne3 {[%clk 0:00:06]}  Qxe4 {[%clk 0:01:31]} 35. Qf1 {[%clk 0:00:03]}  Rde5 {[%clk 0:01:27]} 36. Ng2 {[%clk 0:00:03]}  Qxe1+ {[%clk 0:01:27]} 37. Nxe1 {[%clk 0:00:03]}  Rxe1+ {[%clk 0:01:28]} 38. Qxe1 {[%clk 0:00:03]}  Rxe1# {[%clk 0:01:29]} 0-1


[Site "https://www.chess.com"]

[Event "Titled Tuesday Blitz May 30 Late 2023"]
[White "Moral Garcia, Serafin"]
[Black "Mekhitarian, Krikor Sevag"]
[WhiteFideId "2201925"]
[BlackFideId "2107660"]
[WhiteElo "2274"]
[BlackElo "2604"]
[Result "0-1"]
[Round "04"]
[TimeControl "180+2"]
[Date "2023.05.31"]
[WhiteClock "0:00:17"]
[BlackClock "0:00:04"]

1. e4 {[%clk 0:03:00]}  e6 {[%clk 0:02:56]} 2. d4 {[%clk 0:03:00]}  d5 {[%clk 0:02:55]} 3. Nd2 {[%clk 0:03:01]}  c5 {[%clk 0:02:47]} 4. exd5 {[%clk 0:02:59]}  Qxd5 {[%clk 0:02:48]} 5. Ngf3 {[%clk 0:02:59]}  cxd4 {[%clk 0:02:47]} 6. Bc4 {[%clk 0:02:59]}  Qd7 {[%clk 0:02:47]} 7. O-O {[%clk 0:03:00]}  Nc6 {[%clk 0:02:44]} 8. Nb3 {[%clk 0:03:00]}  a6 {[%clk 0:02:45]} 9. Nbxd4 {[%clk 0:03:00]}  Nxd4 {[%clk 0:02:46]} 10. Nxd4 {[%clk 0:03:00]}  Qc7 {[%clk 0:02:46]} 11. Bb3 {[%clk 0:02:56]}  Bd6 {[%clk 0:02:44]} 12. h3 {[%clk 0:02:37]}  Ne7 {[%clk 0:02:44]} 13. c3 {[%clk 0:02:32]}  O-O {[%clk 0:02:43]} 14. Bc2 {[%clk 0:02:27]}  Ng6 {[%clk 0:02:36]} 15. Qh5 {[%clk 0:02:24]}  Bd7 {[%clk 0:02:27]} 16. Nf3 {[%clk 0:02:24]}  Qc5 {[%clk 0:02:06]} 17. Bxg6 {[%clk 0:01:42]}  hxg6 {[%clk 0:02:01]} 18. Qh4 {[%clk 0:01:41]}  f6 {[%clk 0:01:53]} 19. Be3 {[%clk 0:01:38]}  Qc6 {[%clk 0:01:41]} 20. Rfd1 {[%clk 0:01:30]}  Rad8 {[%clk 0:01:26]} 21. Rd2 {[%clk 0:01:25]}  e5 {[%clk 0:01:19]} 22. Rad1 {[%clk 0:01:22]}  Be6 {[%clk 0:01:10]} 23. b3 {[%clk 0:01:18]}  Bc7 {[%clk 0:00:35]} 24. c4 {[%clk 0:01:16]}  Rxd2 {[%clk 0:00:27]} 25. Rxd2 {[%clk 0:01:16]}  b5 {[%clk 0:00:25]} 26. c5 {[%clk 0:01:11]}  a5 {[%clk 0:00:20]} 27. b4 {[%clk 0:01:01]}  axb4 {[%clk 0:00:19]} 28. Qxb4 {[%clk 0:01:01]}  Ra8 {[%clk 0:00:20]} 29. Qb1 {[%clk 0:00:55]}  Kf7 {[%clk 0:00:17]} 30. Rb2 {[%clk 0:00:51]}  Bf5 {[%clk 0:00:14]} 31. Qd1 {[%clk 0:00:46]}  Be4 {[%clk 0:00:15]} 32. Qb3+ {[%clk 0:00:46]}  Bd5 {[%clk 0:00:14]} 33. Qd1 {[%clk 0:00:46]}  Rxa2 {[%clk 0:00:12]} 34. Rxa2 {[%clk 0:00:45]}  Bxa2 {[%clk 0:00:13]} 35. Nd2 {[%clk 0:00:42]}  Bd5 {[%clk 0:00:13]} 36. f3 {[%clk 0:00:43]}  b4 {[%clk 0:00:12]} 37. Qb1 {[%clk 0:00:38]}  Qb5 {[%clk 0:00:12]} 38. Ne4 {[%clk 0:00:37]}  Qc4 {[%clk 0:00:10]} 39. Nd6+ {[%clk 0:00:37]}  Bxd6 {[%clk 0:00:11]} 40. cxd6 {[%clk 0:00:37]}  Be6 {[%clk 0:00:06]} 41. Qc1 {[%clk 0:00:36]}  Qxc1+ {[%clk 0:00:05]} 42. Bxc1 {[%clk 0:00:37]}  Ke8 {[%clk 0:00:04]} 43. Bd2 {[%clk 0:00:36]}  b3 {[%clk 0:00:04]} 44. Bc1 {[%clk 0:00:37]}  Kd7 {[%clk 0:00:02]} 45. Ba3 {[%clk 0:00:37]}  Bc4 {[%clk 0:00:02]} 46. Kf2 {[%clk 0:00:37]}  g5 {[%clk 0:00:02]} 47. g3 {[%clk 0:00:37]}  Ke6 {[%clk 0:00:03]} 48. Ke3 {[%clk 0:00:36]}  Bb5 {[%clk 0:00:03]} 49. h4 {[%clk 0:00:36]}  gxh4 {[%clk 0:00:03]} 50. gxh4 {[%clk 0:00:36]}  Bc6 {[%clk 0:00:02]} 51. f4 {[%clk 0:00:36]}  Kf5 {[%clk 0:00:02]} 52. fxe5 {[%clk 0:00:36]}  fxe5 {[%clk 0:00:02]} 53. Bb2 {[%clk 0:00:36]}  g6 {[%clk 0:00:02]} 54. Bc3 {[%clk 0:00:35]}  Ke6 {[%clk 0:00:02]} 55. Bb2 {[%clk 0:00:33]}  Kxd6 {[%clk 0:00:02]} 56. Kd3 {[%clk 0:00:31]}  Ke6 {[%clk 0:00:03]} 57. Kc3 {[%clk 0:00:31]}  Bd5 {[%clk 0:00:03]} 58. Kd3 {[%clk 0:00:29]}  Bf3 {[%clk 0:00:03]} 59. Ke3 {[%clk 0:00:29]}  Bd1 {[%clk 0:00:03]} 60. Kd2 {[%clk 0:00:29]}  Bc2 {[%clk 0:00:04]} 61. Ke3 {[%clk 0:00:29]}  Kf5 {[%clk 0:00:04]} 62. Kf3 {[%clk 0:00:27]}  e4+ {[%clk 0:00:05]} 63. Kg3 {[%clk 0:00:24]}  Bd1 {[%clk 0:00:03]} 64. Bc3 {[%clk 0:00:24]}  e3 {[%clk 0:00:03]} 65. Bb2 {[%clk 0:00:19]}  Ke4 {[%clk 0:00:04]} 66. Bc1 {[%clk 0:00:17]}  Kd3 {[%clk 0:00:04]} 67. Kf4 {[%clk 0:00:17]}  e2 {[%clk 0:00:04]} 0-1


[Site "https://www.chess.com"]

[Event "Titled Tuesday Blitz May 30 Late 2023"]
[White "Garakov, Mikhael"]
[Black "Simonian, Hrair"]
[WhiteFideId "4169034"]
[BlackFideId "13302337"]
[WhiteElo "2347"]
[BlackElo "2447"]
[Result "1-0"]
[Round "04"]
[TimeControl "180+2"]
[Date "2023.05.31"]
[WhiteClock "0:00:05"]
[BlackClock "0:00:08"]

1. e4 {[%clk 0:02:55]}  c5 {[%clk 0:02:59]} 2. Nf3 {[%clk 0:02:55]}  e6 {[%clk 0:02:59]} 3. c4 {[%clk 0:02:54]}  Nc6 {[%clk 0:02:58]} 4. Nc3 {[%clk 0:02:54]}  e5 {[%clk 0:02:57]} 5. Be2 {[%clk 0:02:53]}  d6 {[%clk 0:02:58]} 6. O-O {[%clk 0:02:52]}  Nf6 {[%clk 0:02:57]} 7. d3 {[%clk 0:02:52]}  Be7 {[%clk 0:02:56]} 8. Ne1 {[%clk 0:02:40]}  Nd4 {[%clk 0:02:53]} 9. a3 {[%clk 0:02:39]}  O-O {[%clk 0:02:53]} 10. b4 {[%clk 0:02:38]}  g6 {[%clk 0:02:39]} 11. f4 {[%clk 0:02:23]}  Nxe2+ {[%clk 0:02:33]} 12. Qxe2 {[%clk 0:02:15]}  exf4 {[%clk 0:02:26]} 13. Bxf4 {[%clk 0:02:12]}  Nh5 {[%clk 0:02:26]} 14. Bh6 {[%clk 0:02:08]}  Bf6 {[%clk 0:02:20]} 15. Rc1 {[%clk 0:01:14]}  Bd4+ {[%clk 0:02:19]} 16. Be3 {[%clk 0:01:14]}  Qg5 {[%clk 0:02:19]} 17. Nd5 {[%clk 0:01:03]}  Be6 {[%clk 0:02:07]} 18. Bxd4 {[%clk 0:01:02]}  cxd4 {[%clk 0:02:05]} 19. Nf3 {[%clk 0:00:59]}  Bg4 {[%clk 0:01:24]} 20. Nxg5 {[%clk 0:00:26]}  Bxe2 {[%clk 0:01:23]} 21. Rf2 {[%clk 0:00:26]}  Bxd3 {[%clk 0:01:08]} 22. g4 {[%clk 0:00:26]}  f6 {[%clk 0:00:49]} 23. Ne6 {[%clk 0:00:25]}  Rfe8 {[%clk 0:00:41]} 24. Nec7 {[%clk 0:00:25]}  Rxe4 {[%clk 0:00:41]} 25. h3 {[%clk 0:00:17]}  Rf8 {[%clk 0:00:22]} 26. gxh5 {[%clk 0:00:17]}  f5 {[%clk 0:00:22]} 27. hxg6 {[%clk 0:00:14]}  hxg6 {[%clk 0:00:23]} 28. Rd2 {[%clk 0:00:12]}  Be2 {[%clk 0:00:23]} 29. Re1 {[%clk 0:00:11]}  d3 {[%clk 0:00:24]} 30. Nc3 {[%clk 0:00:12]}  Rxc4 {[%clk 0:00:23]} 31. Nxe2 {[%clk 0:00:12]}  dxe2 {[%clk 0:00:21]} 32. Nd5 {[%clk 0:00:10]}  Rh4 {[%clk 0:00:14]} 33. Kg2 {[%clk 0:00:10]}  Kg7 {[%clk 0:00:13]} 34. Rexe2 {[%clk 0:00:10]}  Rf7 {[%clk 0:00:13]} 35. Re7 {[%clk 0:00:09]}  Re4 {[%clk 0:00:12]} 36. Rxe4 {[%clk 0:00:08]}  fxe4 {[%clk 0:00:12]} 37. Nc3 {[%clk 0:00:07]}  Rf3 {[%clk 0:00:11]} 38. Nxe4 {[%clk 0:00:07]}  Rxa3 {[%clk 0:00:11]} 39. Rxd6 {[%clk 0:00:06]}  b6 {[%clk 0:00:10]} 40. Rd7+ {[%clk 0:00:05]}  Kh6 {[%clk 0:00:10]} 41. Rc7 {[%clk 0:00:04]}  a5 {[%clk 0:00:10]} 42. b5 {[%clk 0:00:03]}  Rb3 {[%clk 0:00:10]} 43. Nd6 {[%clk 0:00:04]}  Kg5 {[%clk 0:00:09]} 44. Rc6 {[%clk 0:00:04]}  a4 {[%clk 0:00:10]} 45. Rxb6 {[%clk 0:00:05]}  a3 {[%clk 0:00:10]} 46. Ra6 {[%clk 0:00:05]}  Rb2+ {[%clk 0:00:11]} 47. Kf3 {[%clk 0:00:05]}  Rb3+ {[%clk 0:00:11]} 48. Ke4 {[%clk 0:00:05]}  Rxh3 {[%clk 0:00:11]} 49. Nc4 {[%clk 0:00:05]}  Rh4+ {[%clk 0:00:11]} 50. Kd5 {[%clk 0:00:05]}  Kf4 {[%clk 0:00:07]} 51. Rxa3 {[%clk 0:00:05]}  g5 {[%clk 0:00:08]} 52. b6 {[%clk 0:00:05]}  g4 {[%clk 0:00:08]} 53. b7 {[%clk 0:00:06]}  Rh5+ {[%clk 0:00:08]} 54. Kc6 {[%clk 0:00:06]}  Rh6+ {[%clk 0:00:09]} 55. Nd6 {[%clk 0:00:05]}  g3 {[%clk 0:00:09]} 56. b8=Q {[%clk 0:00:05]}  g2 {[%clk 0:00:10]} 57. Qb4+ {[%clk 0:00:05]}  Kg5 {[%clk 0:00:08]} 58. Rg3+ {[%clk 0:00:05]} 1-0


[Site "https://www.chess.com"]

[Event "Titled Tuesday Blitz May 30 Late 2023"]
[White "ElDivis"]
[Black "Pulpan, Jakub"]
[BlackFideId "302759"]
[WhiteElo "2527"]
[BlackElo "2484"]
[Result "1-0"]
[Round "04"]
[TimeControl "180+2"]
[Date "2023.05.31"]
[WhiteClock "0:00:13"]
[BlackClock "0:00:03"]

1. e4 {[%clk 0:02:55]}  e5 {[%clk 0:02:29]} 2. Nf3 {[%clk 0:02:53]}  Nc6 {[%clk 0:02:23]} 3. Bc4 {[%clk 0:02:52]}  Nf6 {[%clk 0:02:15]} 4. d3 {[%clk 0:02:51]}  Bc5 {[%clk 0:02:12]} 5. O-O {[%clk 0:02:49]}  a6 {[%clk 0:02:07]} 6. Nc3 {[%clk 0:02:46]}  h6 {[%clk 0:02:05]} 7. Nd5 {[%clk 0:02:42]}  d6 {[%clk 0:02:01]} 8. Be3 {[%clk 0:02:38]}  Ba7 {[%clk 0:01:58]} 9. Bxa7 {[%clk 0:02:34]}  Rxa7 {[%clk 0:01:57]} 10. d4 {[%clk 0:02:29]}  O-O {[%clk 0:01:54]} 11. dxe5 {[%clk 0:02:24]}  dxe5 {[%clk 0:01:44]} 12. Qd3 {[%clk 0:02:11]}  Bg4 {[%clk 0:01:39]} 13. c3 {[%clk 0:02:02]}  Ra8 {[%clk 0:01:15]} 14. h3 {[%clk 0:02:01]}  Be6 {[%clk 0:01:13]} 15. Rad1 {[%clk 0:01:55]}  Re8 {[%clk 0:01:12]} 16. Nxf6+ {[%clk 0:01:41]}  Qxf6 {[%clk 0:01:12]} 17. Bxe6 {[%clk 0:01:41]}  Rxe6 {[%clk 0:01:09]} 18. Qd7 {[%clk 0:01:22]}  Re7 {[%clk 0:01:06]} 19. Qd5 {[%clk 0:01:17]}  Rd8 {[%clk 0:01:01]} 20. Qb3 {[%clk 0:01:17]}  Rb8 {[%clk 0:00:41]} 21. Rd5 {[%clk 0:01:05]}  g6 {[%clk 0:00:40]} 22. Rfd1 {[%clk 0:01:02]}  Kg7 {[%clk 0:00:40]} 23. Rd7 {[%clk 0:00:59]}  b5 {[%clk 0:00:27]} 24. Rxe7 {[%clk 0:00:52]}  Qxe7 {[%clk 0:00:27]} 25. Qd5 {[%clk 0:00:49]}  Rd8 {[%clk 0:00:27]} 26. Qb3 {[%clk 0:00:46]}  Rd6 {[%clk 0:00:10]} 27. Rd5 {[%clk 0:00:42]}  Qe6 {[%clk 0:00:10]} 28. Qd1 {[%clk 0:00:40]}  Ne7 {[%clk 0:00:08]} 29. Rxd6 {[%clk 0:00:39]}  cxd6 {[%clk 0:00:09]} 30. b3 {[%clk 0:00:37]}  d5 {[%clk 0:00:09]} 31. exd5 {[%clk 0:00:37]}  Nxd5 {[%clk 0:00:10]} 32. Qe1 {[%clk 0:00:32]}  e4 {[%clk 0:00:08]} 33. Nd4 {[%clk 0:00:30]}  Qe5 {[%clk 0:00:08]} 34. Nf3 {[%clk 0:00:20]}  Qxc3 {[%clk 0:00:07]} 35. Qxe4 {[%clk 0:00:20]}  Nf6 {[%clk 0:00:06]} 36. Qe2 {[%clk 0:00:20]}  h5 {[%clk 0:00:04]} 37. g3 {[%clk 0:00:19]}  Qc8 {[%clk 0:00:03]} 38. Kg2 {[%clk 0:00:19]}  Qc6 {[%clk 0:00:03]} 39. Qe5 {[%clk 0:00:16]}  Kf8 {[%clk 0:00:04]} 40. Qf4 {[%clk 0:00:15]}  Nd5 {[%clk 0:00:04]} 41. Qe4 {[%clk 0:00:14]}  Ne7 {[%clk 0:00:03]} 42. Nd2 {[%clk 0:00:13]}  Ke8 {[%clk 0:00:03]} 43. Kf3 {[%clk 0:00:12]}  Qc3+ {[%clk 0:00:03]} 44. Qe3 {[%clk 0:00:12]}  Qb2 {[%clk 0:00:03]} 45. Ne4 {[%clk 0:00:12]}  Qxa2 {[%clk 0:00:02]} 46. Nf6+ {[%clk 0:00:11]}  Kd8 {[%clk 0:00:02]} 47. Qd4+ {[%clk 0:00:10]}  Kc7 {[%clk 0:00:02]} 48. Qd7+ {[%clk 0:00:11]}  Kb6 {[%clk 0:00:03]} 49. Qxe7 {[%clk 0:00:11]}  Qxb3+ {[%clk 0:00:03]} 50. Kg2 {[%clk 0:00:11]}  Qc4 {[%clk 0:00:03]} 51. Qd6+ {[%clk 0:00:11]}  Qc6+ {[%clk 0:00:03]} 52. Qxc6+ {[%clk 0:00:11]}  Kxc6 {[%clk 0:00:04]} 53. Kf3 {[%clk 0:00:09]}  a5 {[%clk 0:00:05]} 54. Ke3 {[%clk 0:00:09]}  a4 {[%clk 0:00:05]} 55. Kd3 {[%clk 0:00:10]}  Kc5 {[%clk 0:00:05]} 56. Kc3 {[%clk 0:00:10]}  b4+ {[%clk 0:00:05]} 57. Kb2 {[%clk 0:00:11]}  Kd4 {[%clk 0:00:06]} 58. Ne8 {[%clk 0:00:10]}  a3+ {[%clk 0:00:06]} 59. Kb3 {[%clk 0:00:09]}  Kd3 {[%clk 0:00:05]} 60. Nd6 {[%clk 0:00:09]}  Ke2 {[%clk 0:00:05]} 61. Nxf7 {[%clk 0:00:10]}  Kxf2 {[%clk 0:00:06]} 62. Ne5 {[%clk 0:00:10]}  g5 {[%clk 0:00:06]} 63. g4 {[%clk 0:00:09]}  h4 {[%clk 0:00:06]} 64. Nf7 {[%clk 0:00:09]}  Kg2 {[%clk 0:00:05]} 65. Nxg5 {[%clk 0:00:09]}  Kg3 {[%clk 0:00:05]} 66. Ne4+ {[%clk 0:00:09]}  Kxh3 {[%clk 0:00:06]} 67. g5 {[%clk 0:00:10]}  Kg2 {[%clk 0:00:06]} 68. g6 {[%clk 0:00:10]}  h3 {[%clk 0:00:07]} 69. g7 {[%clk 0:00:11]}  h2 {[%clk 0:00:08]} 70. g8=Q+ {[%clk 0:00:12]}  Kf1 {[%clk 0:00:08]} 71. Ng3+ {[%clk 0:00:12]}  Kg2 {[%clk 0:00:09]} 72. Ne2+ {[%clk 0:00:12]}  Kf1 {[%clk 0:00:07]} 73. Qh7 {[%clk 0:00:12]}  Kg2 {[%clk 0:00:06]} 74. Qg6+ {[%clk 0:00:12]}  Kf1 {[%clk 0:00:06]} 75. Qh5 {[%clk 0:00:12]}  Kg2 {[%clk 0:00:06]} 76. Qg4+ {[%clk 0:00:13]}  Kf1 {[%clk 0:00:03]} 77. Qh3+ {[%clk 0:00:13]} 1-0


[Site "https://www.chess.com"]

[Event "Titled Tuesday Blitz May 30 Late 2023"]
[White "Ladan, Nicholas"]
[Black "Jaracz, Pawel"]
[WhiteFideId "30918855"]
[BlackFideId "1102222"]
[WhiteElo "2167"]
[BlackElo "2438"]
[Result "1-0"]
[Round "04"]
[TimeControl "180+2"]
[Date "2023.05.31"]
[WhiteClock "0:00:20"]
[BlackClock "0:00:08"]

1. d4 {[%clk 0:03:00]}  Nf6 {[%clk 0:02:59]} 2. Nc3 {[%clk 0:03:00]}  d6 {[%clk 0:02:57]} 3. e4 {[%clk 0:03:00]}  e5 {[%clk 0:02:57]} 4. Nf3 {[%clk 0:02:57]}  Nbd7 {[%clk 0:02:56]} 5. Bc4 {[%clk 0:02:57]}  Be7 {[%clk 0:02:57]} 6. a4 {[%clk 0:02:56]}  O-O {[%clk 0:02:56]} 7. O-O {[%clk 0:02:56]}  h6 {[%clk 0:02:48]} 8. h3 {[%clk 0:02:55]}  Re8 {[%clk 0:02:47]} 9. Nh4 {[%clk 0:02:44]}  exd4 {[%clk 0:02:43]} 10. Qxd4 {[%clk 0:02:38]}  Nc5 {[%clk 0:02:34]} 11. Nf5 {[%clk 0:02:27]}  Bf8 {[%clk 0:02:26]} 12. Ng3 {[%clk 0:02:13]}  Be6 {[%clk 0:02:23]} 13. Bd3 {[%clk 0:02:01]}  Nxd3 {[%clk 0:02:12]} 14. Qxd3 {[%clk 0:01:59]}  d5 {[%clk 0:01:16]} 15. exd5 {[%clk 0:01:44]}  Nxd5 {[%clk 0:01:16]} 16. Nxd5 {[%clk 0:01:29]}  Qxd5 {[%clk 0:01:14]} 17. Qxd5 {[%clk 0:01:18]}  Bxd5 {[%clk 0:01:15]} 18. Rd1 {[%clk 0:01:18]}  Rad8 {[%clk 0:01:04]} 19. Be3 {[%clk 0:01:18]}  a5 {[%clk 0:01:02]} 20. Bf4 {[%clk 0:01:12]}  c6 {[%clk 0:00:55]} 21. Bc7 {[%clk 0:01:10]}  Ra8 {[%clk 0:00:55]} 22. Re1 {[%clk 0:01:08]}  Rxe1+ {[%clk 0:00:51]} 23. Rxe1 {[%clk 0:01:09]}  b5 {[%clk 0:00:43]} 24. Ra1 {[%clk 0:01:00]}  b4 {[%clk 0:00:38]} 25. Re1 {[%clk 0:00:51]}  Bc5 {[%clk 0:00:36]} 26. Nf5 {[%clk 0:00:46]}  Be6 {[%clk 0:00:33]} 27. g4 {[%clk 0:00:33]}  g6 {[%clk 0:00:24]} 28. Nxh6+ {[%clk 0:00:30]}  Kh7 {[%clk 0:00:22]} 29. g5 {[%clk 0:00:28]}  Bd4 {[%clk 0:00:14]} 30. Be5 {[%clk 0:00:22]}  Bc5 {[%clk 0:00:11]} 31. Ng4 {[%clk 0:00:22]}  Bxg4 {[%clk 0:00:08]} 32. hxg4 {[%clk 0:00:22]}  Re8 {[%clk 0:00:08]} 33. Kg2 {[%clk 0:00:21]}  Bd4 {[%clk 0:00:08]} 34. Rh1+ {[%clk 0:00:20]} 1-0


[Site "https://www.chess.com"]

[Event "Titled Tuesday Blitz May 30 Late 2023"]
[White "Tristan, Leonardo"]
[Black "Bringas Gomez, Artai"]
[WhiteFideId "113816"]
[BlackFideId "24534064"]
[WhiteElo "2461"]
[BlackElo "2179"]
[Result "0-1"]
[Round "04"]
[TimeControl "180+2"]
[Date "2023.05.31"]
[WhiteClock "0:00:06"]
[BlackClock "0:00:24"]

1. d4 {[%clk 0:03:00]}  d5 {[%clk 0:02:57]} 2. Nf3 {[%clk 0:03:01]}  c6 {[%clk 0:02:55]} 3. Bf4 {[%clk 0:03:01]}  Bf5 {[%clk 0:02:55]} 4. e3 {[%clk 0:03:01]}  e6 {[%clk 0:02:55]} 5. c4 {[%clk 0:03:02]}  Qb6 {[%clk 0:02:34]} 6. Qb3 {[%clk 0:03:01]}  Bxb1 {[%clk 0:02:22]} 7. Rxb1 {[%clk 0:03:01]}  Bb4+ {[%clk 0:02:22]} 8. Kd1 {[%clk 0:03:01]}  Be7 {[%clk 0:02:18]} 9. c5 {[%clk 0:02:58]}  Qxb3+ {[%clk 0:02:17]} 10. axb3 {[%clk 0:02:59]}  Nd7 {[%clk 0:02:16]} 11. b4 {[%clk 0:03:00]}  a6 {[%clk 0:02:16]} 12. Ra1 {[%clk 0:03:00]}  Rc8 {[%clk 0:02:16]} 13. Nd2 {[%clk 0:03:00]}  Bd8 {[%clk 0:02:15]} 14. Nb3 {[%clk 0:03:00]}  Bc7 {[%clk 0:02:16]} 15. Bxc7 {[%clk 0:02:47]}  Rxc7 {[%clk 0:02:17]} 16. Bd3 {[%clk 0:02:45]}  Ngf6 {[%clk 0:02:12]} 17. b5 {[%clk 0:02:45]}  cxb5 {[%clk 0:02:04]} 18. Bxb5 {[%clk 0:02:46]}  Ke7 {[%clk 0:01:57]} 19. Bd3 {[%clk 0:02:32]}  Nb8 {[%clk 0:01:53]} 20. Ra4 {[%clk 0:02:10]}  Nc6 {[%clk 0:01:53]} 21. f4 {[%clk 0:02:10]}  h6 {[%clk 0:01:52]} 22. Nd2 {[%clk 0:02:09]}  g5 {[%clk 0:01:52]} 23. g3 {[%clk 0:02:10]}  g4 {[%clk 0:01:43]} 24. b4 {[%clk 0:02:09]}  h5 {[%clk 0:01:42]} 25. Kc2 {[%clk 0:01:55]}  h4 {[%clk 0:01:42]} 26. Rb1 {[%clk 0:01:56]}  hxg3 {[%clk 0:01:32]} 27. hxg3 {[%clk 0:01:57]}  Rh3 {[%clk 0:01:32]} 28. Rg1 {[%clk 0:01:47]}  Nh5 {[%clk 0:01:23]} 29. Nf1 {[%clk 0:01:46]}  f5 {[%clk 0:01:21]} 30. Kc3 {[%clk 0:01:46]}  Rc8 {[%clk 0:01:10]} 31. Ra2 {[%clk 0:01:41]}  Nf6 {[%clk 0:01:08]} 32. b5 {[%clk 0:01:33]}  axb5 {[%clk 0:01:08]} 33. Bxb5 {[%clk 0:01:34]}  Ne4+ {[%clk 0:01:03]} 34. Kb3 {[%clk 0:01:34]}  Kd7 {[%clk 0:00:50]} 35. Rag2 {[%clk 0:01:04]}  Rch8 {[%clk 0:00:41]} 36. Nd2 {[%clk 0:01:03]}  Nf6 {[%clk 0:00:37]} 37. Kc3 {[%clk 0:00:59]}  Rh1 {[%clk 0:00:35]} 38. Kd3 {[%clk 0:00:53]}  Rxg1 {[%clk 0:00:35]} 39. Rxg1 {[%clk 0:00:54]}  Rh3 {[%clk 0:00:34]} 40. Bxc6+ {[%clk 0:00:48]}  Kxc6 {[%clk 0:00:33]} 41. Nb3 {[%clk 0:00:44]}  Ne4 {[%clk 0:00:31]} 42. Na5+ {[%clk 0:00:44]}  Kb5 {[%clk 0:00:25]} 43. Nxb7 {[%clk 0:00:44]}  Rxg3 {[%clk 0:00:24]} 44. Rb1+ {[%clk 0:00:42]}  Kc6 {[%clk 0:00:25]} 45. Na5+ {[%clk 0:00:41]}  Kc7 {[%clk 0:00:23]} 46. Kc2 {[%clk 0:00:16]}  Rg2+ {[%clk 0:00:23]} 47. Kd1 {[%clk 0:00:05]}  Rg1+ {[%clk 0:00:23]} 48. Kc2 {[%clk 0:00:06]}  Rxb1 {[%clk 0:00:24]} 49. Kxb1 {[%clk 0:00:06]}  g3 {[%clk 0:00:24]} 0-1


[Site "https://www.chess.com"]